bitfinex-derivatives/quotes_SOLF0:USTF0_20260116
["timestamp","ask_amount","ask_price","bid_price","bid_amount"]
[1768544501081,1.59393536,143.06,143.01,59.6909185]
[1768544501289,1.59393536,143.06,142.98,6.2973]
[1768544501290,1.59393536,143.04,142.99,59.6909185]
[1768544504592,57.72702466,143.06,142.99,59.6909185]
[1768544505987,1.59393536,143.06,142.99,59.6909185]
[1768544506194,1.59393536,143.06,142.99,65.9876185]
[1768544508891,1.59393536,143.08,142.99,65.9876185]
[1768544509195,57.39191937,143.08,142.99,65.9876185]
[1768544510989,57.39191937,143.08,143.01,59.6909185]
[1768544513898,57.39191937,143.08,143.01,65.9868185]
[1768544516897,57.39191937,143.08,143.02,6.2955]
[1768544517200,57.39191937,143.08,143.02,61.81153968]
[1768544520699,57.39191937,143.08,143.02,55.51603968]
[1768544522495,55.79798401,143.08,143.02,55.51603968]
[1768544522799,57.39191937,143.08,143.02,55.51603968]
[1768544525294,5.15866579,143.07,143.02,55.51603968]
[1768544525495,57.39191937,143.08,143.02,55.51603968]
[1768544525695,5.15866579,143.07,143.02,55.51603968]
[1768544526002,57.39191937,143.08,143.02,55.51603968]
[1768544526197,5.15866579,143.07,143.02,55.51603968]
[1768544526398,57.39191937,143.08,143.02,55.51603968]
[1768544526797,6.2918,143.11,143.02,55.51603968]
[1768544526798,1.59393536,143.1,143.02,55.51603968]
[1768544526996,5.16127117,143.09,143.02,55.51603968]
[1768544527296,1.59393536,143.1,143.02,55.51603968]
[1768544527501,5.16464394,143.09,143.02,55.51603968]
[1768544527803,55.09910374,143.09,143.02,55.51603968]
[1768544527998,61.81990245,143.08,143.02,55.51603968]
[1768544528197,60.22596709,143.07,143.02,55.51603968]
[1768544528392,5.1647153,143.06,143.02,55.51603968]
[1768544532006,1.59393536,143.08,143.02,55.51603968]
[1768544532304,5.17263286,143.07,143.02,55.51603968]
[1768544532505,5.17263286,143.06,143.02,55.51603968]
[1768544532710,56.54564219,143.09,143.02,55.51603968]
[1768544532899,5.17234821,143.08,143.02,55.51603968]
[1768544533100,5.17234821,143.07,143.02,55.51603968]
[1768544533301,5.17234821,143.06,143.02,55.51603968]
[1768544533498,56.54564219,143.09,143.02,55.51603968]
[1768544533701,5.17260507,143.08,143.02,55.51603968]
[1768544533904,5.17260507,143.07,143.02,55.51603968]
[1768544534109,5.17260507,143.06,143.02,55.51603968]
[1768544534310,56.54564219,143.09,143.02,55.51603968]
[1768544534506,5.17255633,143.08,143.02,61.81153968]
[1768544534710,56.44054936,143.11,143.02,55.51603968]
[1768544535809,56.44054936,143.11,143.04,55.51603968]
[1768544538510,54.846614,143.11,143.04,55.51603968]
[1768544539612,97.8233,143.18,143.04,55.51603968]
[1768544539613,58.4154234,143.12,143.04,55.51603968]
[1768544541012,58.4154234,143.12,143.04,61.81063968]
[1768544541402,1.59393536,143.12,143.04,55.51603968]
[1768544541806,53.02665959,143.14,143.04,55.51603968]
[1768544542006,54.62059495,143.13,143.04,55.51603968]
[1768544542416,53.02665959,143.13,143.04,55.51603968]
[1768544542711,53.02665959,143.13,143.06,54.24185214]
[1768544542914,1.59393536,143.14,143.06,54.24185214]
[1768544544013,53.02665959,143.15,143.06,60.53555214]
[1768544544214,54.62059495,143.15,143.06,60.53555214]
[1768544547217,54.62059495,143.15,143.08,53.4260532]
[1768544551425,54.54738486,143.13,143.06,53.4260532]
[1768544552621,54.54738486,143.11,143.04,53.4260532]
[1768544555425,1.59393536,143.09,143.04,53.4260532]
[1768544559426,54.54677627,143.1,143.04,53.4260532]
[1768544564935,60.83897627,143.1,143.04,53.4260532]
[1768544567738,1.59332677,143.1,143.04,53.4260532]
[1768544567941,60.83827627,143.12,143.04,53.4260532]
[1768544568333,7.88482677,143.12,143.04,53.4260532]
[1768544568934,1.59332677,143.12,143.04,53.4260532]
[1768544569841,1.59332677,143.12,143.04,59.7206532]
[1768544570734,60.83727627,143.14,143.04,59.7206532]
[1768544573342,7.88382677,143.14,143.04,59.7206532]
[1768544578342,62.91060671,143.14,143.04,59.7206532]
[1768544579247,62.91060671,143.14,143.06,53.02358437]
[1768544579650,56.62010671,143.14,143.06,53.02358437]
[1768544583249,56.62010671,143.14,143.06,59.31728437]
[1768544585047,56.62010671,143.14,143.06,53.02358437]
[1768544586052,1.59332677,143.12,143.06,53.02358437]
[1768544588356,56.62010671,143.13,143.06,53.02358437]
[1768544596861,56.62010671,143.11,143.04,53.02358437]
[1768544597668,62.91180671,143.11,143.04,53.02358437]
[1768544599561,56.62010671,143.07,143.02,53.02358437]
[1768544599864,1.59332677,143.05,143.0,53.02358437]
[1768544601562,55.02677994,143.06,143.0,53.02358437]
[1768544604365,56.04685054,143.05,142.98,53.02352087]
[1768544612960,57.11988657,143.07,143.01,58.2321749]
[1768544613165,58.71321334,143.07,143.01,58.2321749]
[1768544621282,58.71384894,143.07,143.01,58.2321749]
[1768544633792,53.67272281,143.11,143.01,58.2321749]
[1768544633987,53.67272281,143.09,143.01,58.2321749]
[1768544634693,55.26668518,143.08,143.01,58.2321749]
[1768544635085,97.8716,143.11,143.01,58.2321749]
[1768544635086,55.26668518,143.06,143.01,58.2321749]
[1768544638797,55.26668518,143.06,142.98,54.22181727]
[1768544638999,55.26668518,143.04,142.98,54.22181727]
[1768544640997,55.26668518,143.04,142.96,54.22181727]
[1768544641204,55.26668518,143.02,142.96,54.22181727]
[1768544652108,55.26668518,143.02,142.93,60.52111727]
[1768544652309,55.26668518,143.02,142.95,54.22181727]
[1768544658112,55.26668518,143.04,142.95,54.22181727]
[1768544658307,53.67272281,143.04,142.95,54.22181727]
[1768544659104,1.59396237,143.06,142.98,54.22181727]
[1768544659309,61.55988518,143.08,142.98,54.22181727]
[1768544660915,61.55988518,143.08,142.98,60.51911727]
[1768544661418,55.26668518,143.08,142.98,60.51911727]
[1768544666923,61.55978518,143.08,142.98,60.51911727]
[1768544669925,52.95077645,143.06,142.98,60.51911727]
[1768544674925,52.95077645,143.06,142.98,54.22181727]
[1768544680828,52.95077645,143.06,142.97,6.2977]
[1768544681022,51.35681408,143.03,142.96,52.02381584]
[1768544681427,52.95165529,143.03,142.96,52.02381584]
[1768544700149,1.59484121,143.01,142.96,52.02381584]
[1768544700445,1.59484121,143.03,142.96,52.02381584]
[1768544701744,1.59484121,143.03,142.96,58.32191584]
[1768544702451,52.96117039,143.03,142.96,52.02381584]
[1768544704941,52.96117039,143.05,142.96,58.32191584]
[1768544705646,52.96117039,143.05,142.94,1.59484121]
[1768544705647,51.36632918,143.05,142.98,53.87235829]
[1768544705949,59.25477039,143.07,142.98,53.87235829]
[1768544706850,59.25477039,143.07,142.98,60.16955829]
[1768544711152,52.96117039,143.07,142.98,60.16955829]
[1768544738171,59.25467039,143.07,142.98,60.16955829]
[1768544743275,1.59414016,143.06,142.98,60.16955829]
[1768544743474,48.9663353,143.06,142.98,60.16955829]
[1768544745479,55.2604353,143.06,142.98,53.87235829]
[1768544745871,47.37219514,143.06,142.98,53.87235829]
[1768544746075,47.37219514,143.06,142.98,60.16955829]
[1768544746579,55.00970644,143.08,142.98,60.16955829]
[1768544746782,55.00970644,143.08,143.0,51.06610145]
[1768544746783,48.71640644,143.08,143.0,51.06610145]
[1768544747876,48.71640644,143.08,143.0,57.36240145]
[1768544748185,47.12226628,143.08,143.0,57.36240145]
[1768544751280,47.12226628,143.08,143.02,47.26225694]
[1768544754887,47.12226628,143.08,143.02,53.55765694]
[1768544762292,45.80449645,143.06,143.0,53.55845694]
[1768544762996,45.80449645,143.06,143.0,47.26225694]
[1768544769492,1.59414016,143.05,143.0,47.26225694]
[1768544773392,46.67708995,143.05,143.0,47.26225694]
[1768544774598,46.67708995,143.05,142.98,47.26225694]
[1768544776903,52.97148995,143.05,142.98,47.26225694]
[1768544780106,7.88854016,143.05,142.98,47.26225694]
[1768544780302,6.2938,143.07,142.98,47.26225694]
[1768544781206,46.26346308,143.08,142.98,53.55945694]
[1768544787003,46.26346308,143.08,142.99,54.69303368]
[1768544790407,44.66932292,143.08,142.99,54.69303368]
[1768544790603,46.26346308,143.08,142.99,54.69303368]
[1768544791910,46.26346308,143.08,143.01,49.94308299]
[1768544796609,44.66932292,143.08,143.01,56.23898299]
[1768544800015,1.59414016,143.07,143.01,56.23898299]
[1768544803515,1.59414016,143.07,143.01,49.94308299]
[1768544803721,45.04096232,143.07,143.01,49.94308299]
[1768544805420,45.04056492,143.07,143.01,49.94308299]
[1768544807323,43.44682216,143.07,143.01,49.94308299]
[1768544807523,45.04056492,143.07,143.01,49.94308299]
[1768544813724,45.04056492,143.07,143.01,56.23888299]
[1768544816033,43.44682216,143.07,143.01,56.23888299]
[1768544819335,43.44682216,143.07,142.99,54.14965054]
[1768544819635,42.79491259,143.05,142.99,54.14965054]
[1768544821837,42.79491259,143.05,143.0,54.14945054]
[1768544822036,1.59374276,143.08,143.0,47.85305054]
[1768544823848,1.59374276,143.08,143.02,54.14855054]
[1768544824341,42.6908756,143.09,143.03,6.2951]
[1768544829945,42.6908756,143.09,143.02,47.85305054]
[1768544830138,1.59374276,143.08,143.02,47.85305054]
[1768544830440,44.02328425,143.08,143.02,47.85305054]
[1768544830740,43.64647363,143.14,143.02,47.85305054]
[1768544830945,42.42954149,143.11,143.04,47.85305054]
[1768544831241,43.99207927,143.08,143.02,47.85305054]
[1768544832845,43.99207927,143.08,143.02,54.14835054]
[1768544840653,43.99207927,143.08,143.02,47.85305054]
[1768544845763,43.54960675,143.06,143.0,46.02079919]
[1768544853359,41.95586399,143.06,143.0,46.02079919]
[1768544853558,1.59374276,143.05,143.0,46.02079919]
[1768544856967,43.27088935,143.05,143.0,46.02079919]
[1768544857370,5.18273057,143.04,143.0,46.02079919]
[1768544857668,43.27088935,143.05,143.0,46.02079919]
[1768544857869,5.18273057,143.04,143.0,46.02079919]
[1768544858069,43.27088935,143.05,143.0,46.02079919]
[1768544858269,5.18256163,143.04,143.0,46.02079919]
[1768544858465,43.27088935,143.05,143.0,46.02079919]
[1768544858664,5.18256163,143.04,143.0,46.02079919]
[1768544858869,43.27088935,143.05,143.0,46.02079919]
[1768544859062,5.18256163,143.04,143.0,46.02079919]
[1768544859264,43.27088935,143.05,143.0,46.02079919]
[1768544859463,5.18239979,143.04,143.0,46.02079919]
[1768544859670,43.27088935,143.05,143.0,46.02079919]
[1768544859870,5.18239979,143.04,143.0,46.02079919]
[1768544860071,43.27088935,143.05,143.0,46.02079919]
[1768544860370,5.18225432,143.04,143.0,46.02079919]
[1768544860572,43.27088935,143.05,143.0,46.02079919]
[1768544860772,5.18225432,143.04,143.0,46.02079919]
[1768544860972,43.27088935,143.05,143.0,46.02079919]
[1768544861172,5.18225432,143.04,143.0,46.02079919]
[1768544861474,43.27088935,143.05,143.0,46.02079919]
[1768544861772,5.18211701,143.04,143.0,46.02079919]
[1768544861974,43.27088935,143.05,143.0,46.02079919]
[1768544862173,5.18211701,143.04,143.0,46.02079919]
[1768544862466,43.27088935,143.05,143.0,46.02079919]
[1768544862671,5.18198749,143.04,143.0,46.02079919]
[1768544862869,43.27088935,143.05,143.0,46.02079919]
[1768544863068,5.18198749,143.04,143.0,46.02079919]
[1768544863273,43.27088935,143.05,143.0,46.02079919]
[1768544863562,5.1818753,143.04,143.0,46.02079919]
[1768544863767,43.27088935,143.05,143.0,46.02079919]
[1768544863968,5.1818753,143.04,143.0,46.02079919]
[1768544864160,43.27088935,143.05,143.0,46.02079919]
[1768544864366,5.18177326,143.04,143.0,46.02079919]
[1768544864565,43.27088935,143.05,143.0,46.02079919]
[1768544864765,5.18177326,143.04,143.0,46.02079919]
[1768544864963,43.27088935,143.05,143.0,46.02079919]
[1768544865176,5.18177326,143.04,143.0,46.02079919]
[1768544865362,41.67714659,143.05,143.0,46.02079919]
[1768544865566,5.18177776,143.04,143.0,46.02079919]
[1768544865872,41.67714659,143.05,143.0,46.02079919]
[1768544866072,5.18177776,143.04,143.0,46.02079919]
[1768544866272,41.67714659,143.05,143.0,46.02079919]
[1768544866473,5.18191071,143.04,143.0,46.02079919]
[1768544866678,41.67714659,143.05,143.0,46.02079919]
[1768544866871,5.18191071,143.04,143.0,46.02079919]
[1768544867172,41.67714659,143.05,143.0,46.02079919]
[1768544867471,5.18183604,143.04,143.0,46.02079919]
[1768544867671,41.67714659,143.05,143.0,46.02079919]
[1768544867875,5.18183604,143.04,143.0,46.02079919]
[1768544868077,41.67714659,143.05,143.0,46.02079919]
[1768544868377,5.18173868,143.04,143.0,46.02079919]
[1768544868568,41.67714659,143.05,143.0,46.02079919]
[1768544868769,5.18173868,143.04,143.0,46.02079919]
[1768544868969,47.97154659,143.05,142.96,45.07470047]
[1768544869175,5.18226143,143.04,142.96,45.07470047]
[1768544875581,5.18226143,143.04,142.96,51.37290047]
[1768544880582,5.18226143,143.04,142.98,47.54030386]
[1768544880782,40.3385048,143.07,142.98,47.54030386]
[1768544880981,5.1818991,143.06,142.98,47.54030386]
[1768544881183,5.1818991,143.05,142.98,47.54030386]
[1768544881487,5.1818991,143.04,142.98,47.54030386]
[1768544881681,40.3385048,143.07,142.98,47.54030386]
[1768544881986,5.1821501,143.06,142.98,53.83750386]
[1768544882183,5.1821501,143.05,142.98,53.83750386]
[1768544882382,5.1821501,143.04,142.98,53.83750386]
[1768544882686,40.3385048,143.07,142.98,53.83750386]
[1768544882882,5.1825648,143.06,142.98,53.83750386]
[1768544883081,5.1825648,143.05,142.98,53.83750386]
[1768544883276,5.1825648,143.04,142.98,53.83750386]
[1768544883484,40.3385048,143.07,142.98,53.83750386]
[1768544883682,5.18302064,143.06,142.98,53.83750386]
[1768544883882,5.18302064,143.05,142.98,53.83750386]
[1768544884083,5.18302064,143.04,142.98,53.83750386]
[1768544884382,41.93271205,143.07,142.98,53.83750386]
[1768544884578,5.18353064,143.06,142.98,53.83750386]
[1768544884782,5.18353064,143.05,142.98,53.83750386]
[1768544885085,5.18353064,143.04,142.98,53.83750386]
[1768544885286,41.93271205,143.07,142.98,53.83750386]
[1768544885486,45.21819926,143.06,142.98,53.83750386]
[1768544885686,5.18409852,143.05,142.98,53.83750386]
[1768544885889,5.18409852,143.04,142.98,53.83750386]
[1768544887982,5.18409852,143.04,142.99,53.83700386]
[1768544888990,5.18409852,143.04,142.99,47.54030386]
[1768544890189,5.18409852,143.04,142.99,53.83720386]
[1768544892888,5.18409852,143.04,143.0,53.83670386]
[1768544900497,1.59420725,143.05,143.01,53.83630386]
[1768544900699,1.59420725,143.07,143.01,53.83630386]
[1768544900902,40.81468714,143.07,143.01,53.83630386]
[1768544904704,40.81468714,143.07,143.02,50.7170287]
[1768544906609,1.59420725,143.09,143.04,44.4216287]
[1768544907298,40.41287972,143.09,143.04,44.4216287]
[1768544908309,1.59420725,143.1,143.04,50.7162287]
[1768544911709,40.23505053,143.1,143.04,50.7162287]
[1768544912312,40.23505053,143.1,143.05,6.294]
[1768544912313,38.64084328,143.1,143.05,6.294]
[1768544912613,40.23505053,143.1,143.05,6.294]
[1768544919127,40.23505053,143.1,143.04,44.4216287]
[1768544919414,1.59420725,143.08,143.04,44.4216287]
[1768544919812,1.59420725,143.08,143.03,6.2948]
[1768544920821,1.59420725,143.08,143.03,54.64497153]
[1768544921015,38.30900025,143.09,143.03,54.64497153]
[1768544921215,39.9032075,143.09,143.03,54.64497153]
[1768544923524,38.30900025,143.09,143.03,54.64497153]
[1768544933031,1.59324074,143.1,143.03,54.64497153]
[1768544935234,38.51421274,143.11,143.03,54.64497153]
[1768544949355,36.920972,143.11,143.03,54.64497153]
[1768544949557,38.51421274,143.11,143.03,54.64497153]
[1768544959264,5.18828328,143.1,143.03,54.64497153]
[1768544959562,5.18828328,143.09,143.03,54.64497153]
[1768544959761,5.18828328,143.08,143.03,54.64497153]
[1768544960053,38.51421274,143.11,143.03,54.64497153]
[1768544960054,5.18828328,143.07,143.03,54.64497153]
[1768544960258,38.51421274,143.11,143.03,54.64497153]
[1768544960559,5.18822783,143.1,143.03,54.64497153]
[1768544960760,5.18822783,143.09,143.03,54.64497153]
[1768544960959,5.18822783,143.08,143.03,54.64497153]
[1768544961159,5.18822783,143.07,143.03,54.64497153]
[1768544961360,38.51421274,143.11,143.03,54.64497153]
[1768544961661,5.18699217,143.1,143.03,54.64497153]
[1768544961964,5.18699217,143.09,143.03,54.64497153]
[1768544962163,5.18699217,143.08,143.03,54.64497153]
[1768544962459,5.18699217,143.07,143.03,54.64497153]
[1768544962659,5.878e-05,143.06,143.03,54.64497153]
[1768544962858,34.26120944,143.1,143.03,54.64497153]
[1768544974665,5.1801615,143.09,143.03,54.64497153]
[1768544974871,5.1801615,143.08,143.03,54.64497153]
[1768544975171,5.1801615,143.07,143.03,54.64497153]
[1768544975371,34.26120944,143.1,143.03,54.64497153]
[1768544975675,5.1804599,143.09,143.03,54.64497153]
[1768544975975,5.1804599,143.08,143.03,54.64497153]
[1768544976170,5.1804599,143.07,143.03,54.64497153]
[1768544976368,34.26120944,143.1,143.03,54.64497153]
[1768544976567,5.18075635,143.09,143.03,54.64497153]
[1768544976768,5.18075635,143.08,143.03,54.64497153]
[1768544976967,34.26120944,143.1,143.03,54.64497153]
[1768544977977,7.88494074,143.11,143.03,54.64497153]
[1768544978576,46.15046117,143.11,143.03,54.64497153]
[1768544983384,7.88494074,143.11,143.03,54.64497153]
[1768544987496,6.2917,143.11,143.03,54.64497153]
[1768544988593,39.61613841,143.12,143.05,41.94242229]
[1768544993202,39.61613841,143.12,143.05,48.23662229]
[1768544995801,38.02328934,143.12,143.05,48.23662229]
[1768545001511,38.02328934,143.12,143.05,41.94242229]
[1768545004809,38.68890079,143.11,143.05,41.94242229]
[1768545010817,37.09605172,143.11,143.05,41.94242229]
[1768545011017,38.68890079,143.11,143.05,41.94242229]
[1768545011821,6.2915,143.12,143.05,41.94242229]
[1768545012013,38.4430286,143.13,143.05,41.94242229]
[1768545012719,43.10778849,143.12,143.05,41.94242229]
[1768545016922,6.2918,143.11,143.05,41.94242229]
[1768545026930,36.81648849,143.12,143.05,41.94242229]
[1768545031335,43.10778849,143.12,143.05,41.94242229]
[1768545041638,6.2913,143.12,143.05,41.94242229]
[1768545041947,6.2906,143.14,143.05,43.53527136]
[1768545042336,6.2906,143.14,143.05,41.94242229]
[1768545042539,6.2906,143.14,143.05,43.53527136]
[1768545044642,42.21577686,143.14,143.05,43.53527136]
[1768545047049,41.65803509,143.13,143.05,41.94242229]
[1768545047248,36.95988416,143.12,143.05,41.94242229]
[1768545048845,43.25118416,143.12,143.05,41.94242229]
[1768545049448,43.25105779,143.12,143.05,41.94242229]
[1768545054353,41.79825596,143.14,143.05,41.94242229]
[1768545057758,41.79825596,143.14,143.05,48.23662229]
[1768545057965,40.20553326,143.14,143.05,48.23662229]
[1768545058260,40.20553326,143.14,143.05,49.82934499]
[1768545064447,32.34821078,143.16,143.07,43.21175]
[1768545065957,32.34821078,143.16,143.07,49.50505]
[1768545068459,1.5927227,143.18,143.09,43.21175]
[1768545068460,31.76941932,143.18,143.09,43.21175]
[1768545069261,31.76941932,143.18,143.09,49.50415]
[1768545069761,31.76941932,143.18,143.09,43.21175]
[1768545070857,31.76941932,143.18,143.11,41.6190273]
[1768545072566,31.76941932,143.18,143.11,47.9104273]
[1768545077469,32.15450092,143.2,143.11,47.9104273]
[1768545080470,30.56177822,143.2,143.11,49.50315]
[1768545083169,30.56177822,143.2,143.11,47.9104273]
[1768545088875,36.84957822,143.2,143.11,47.9104273]
[1768545090677,30.37840476,143.19,143.11,47.9104273]
[1768545091580,28.67991784,143.18,143.11,41.6190273]
[1768545095777,34.96861784,143.18,143.11,41.6190273]
[1768545095974,28.26685606,143.16,143.11,41.6190273]
[1768545102975,29.18189221,143.15,143.08,37.47238081]
[1768545104192,5.16634737,143.14,143.08,37.47238081]
[1768545104393,29.18189221,143.15,143.08,37.47238081]
[1768545104690,5.16621609,143.14,143.08,37.47238081]
[1768545104890,29.18189221,143.15,143.08,37.47238081]
[1768545105090,5.16621609,143.14,143.08,37.47238081]
[1768545105284,29.18189221,143.15,143.08,37.47238081]
[1768545105481,5.16609788,143.14,143.08,37.47238081]
[1768545105685,29.18189221,143.15,143.08,37.47238081]
[1768545105882,5.16609788,143.14,143.08,37.47238081]
[1768545106087,29.18189221,143.15,143.08,37.47238081]
[1768545106287,5.16724792,143.14,143.08,37.47238081]
[1768545106486,29.18189221,143.15,143.08,37.47238081]
[1768545106687,5.16708257,143.14,143.08,37.47238081]
[1768545106889,29.18189221,143.15,143.08,37.47238081]
[1768545107090,5.16708257,143.14,143.08,37.47238081]
[1768545107293,29.18189221,143.15,143.08,37.47238081]
[1768545107494,5.16781829,143.14,143.08,37.47238081]
[1768545107798,29.18189221,143.15,143.08,37.47238081]
[1768545107996,5.16781829,143.14,143.08,37.47238081]
[1768545108194,29.18189221,143.15,143.08,37.47238081]
[1768545108394,5.16860266,143.14,143.08,37.47238081]
[1768545108695,29.18189221,143.15,143.08,37.47238081]
[1768545108893,5.16860266,143.14,143.08,37.47238081]
[1768545109090,29.18189221,143.15,143.08,37.47238081]
[1768545109289,5.16860266,143.14,143.08,37.47238081]
[1768545109490,27.58916951,143.15,143.08,37.47238081]
[1768545109691,5.16944441,143.14,143.08,37.47238081]
[1768545109890,27.58916951,143.15,143.08,37.47238081]
[1768545110093,5.16944214,143.14,143.08,37.47238081]
[1768545110287,27.58916951,143.15,143.08,37.47238081]
[1768545110491,5.1693431,143.14,143.08,37.47238081]
[1768545110792,27.58916951,143.15,143.08,37.47238081]
[1768545110991,5.1693431,143.14,143.08,37.47238081]
[1768545111297,27.58916951,143.15,143.08,37.47238081]
[1768545111489,5.16864251,143.14,143.08,37.47238081]
[1768545111690,27.58916951,143.15,143.08,37.47238081]
[1768545111891,5.16864478,143.14,143.08,37.47238081]
[1768545112089,27.58916951,143.15,143.08,37.47238081]
[1768545112290,5.16864478,143.14,143.08,37.47238081]
[1768545112490,27.58916951,143.15,143.08,37.47238081]
[1768545112695,5.16854064,143.14,143.08,37.47238081]
[1768545112895,27.58916951,143.15,143.08,37.47238081]
[1768545113094,5.16854064,143.14,143.08,37.47238081]
[1768545113293,27.58916951,143.15,143.08,37.47238081]
[1768545113493,5.16843145,143.14,143.08,37.47238081]
[1768545113697,27.58916951,143.15,143.08,37.47238081]
[1768545113898,5.16843145,143.14,143.08,37.47238081]
[1768545114098,27.58916951,143.15,143.08,37.47238081]
[1768545114300,5.16843145,143.14,143.08,37.47238081]
[1768545114597,27.58916951,143.15,143.08,37.47238081]
[1768545114794,5.16808395,143.14,143.08,37.47238081]
[1768545114995,27.58916951,143.15,143.08,37.47238081]
[1768545115200,5.16808461,143.14,143.08,37.47238081]
[1768545115389,27.58916951,143.15,143.08,37.47238081]
[1768545115592,5.16771906,143.14,143.08,37.47238081]
[1768545115795,27.58916951,143.15,143.08,37.47238081]
[1768545115997,5.16771906,143.14,143.08,37.47238081]
[1768545116195,27.58916951,143.15,143.08,37.47238081]
[1768545116398,5.16740302,143.14,143.08,37.47238081]
[1768545116597,27.58916951,143.15,143.08,37.47238081]
[1768545116799,5.16740302,143.14,143.08,37.47238081]
[1768545116998,27.58916951,143.15,143.08,37.47238081]
[1768545117199,5.16740302,143.14,143.08,37.47238081]
[1768545117498,27.58916951,143.15,143.08,37.47238081]
[1768545117701,5.16711757,143.14,143.08,37.47238081]
[1768545117903,27.58916951,143.15,143.08,37.47238081]
[1768545118101,5.16711757,143.14,143.08,37.47238081]
[1768545118303,27.58916951,143.15,143.08,37.47238081]
[1768545118503,5.16686193,143.14,143.08,37.47238081]
[1768545118703,27.58916951,143.15,143.08,37.47238081]
[1768545118904,5.16686193,143.14,143.08,37.47238081]
[1768545119096,27.58916951,143.15,143.08,37.47238081]
[1768545119293,5.16686193,143.14,143.08,37.47238081]
[1768545119494,27.58916951,143.15,143.08,37.47238081]
[1768545119696,5.16663416,143.14,143.08,37.47238081]
[1768545119902,27.58916951,143.15,143.08,37.47238081]
[1768545120201,5.16663416,143.14,143.08,37.47238081]
[1768545120404,27.58916951,143.15,143.08,37.47238081]
[1768545120605,5.16656425,143.14,143.08,37.47238081]
[1768545120799,27.58916951,143.15,143.08,37.47238081]
[1768545120996,5.16680061,143.14,143.08,37.47238081]
[1768545121196,6.2905,143.14,143.06,36.01367017]
[1768545121401,25.96572894,143.11,143.03,36.01367017]
[1768545121901,1.59188119,143.12,143.03,36.01367017]
[1768545122107,5.16782543,143.11,143.03,36.01367017]
[1768545122302,27.55761013,143.13,143.03,36.01367017]
[1768545122501,5.16595082,143.12,143.03,36.01367017]
[1768545122702,5.16595082,143.11,143.03,36.01367017]
[1768545122905,27.55761013,143.13,143.05,36.01367017]
[1768545123109,5.16595312,143.12,143.05,36.01367017]
[1768545123320,5.16595312,143.11,143.05,36.01367017]
[1768545123513,27.55761013,143.13,143.05,36.01367017]
[1768545123817,5.16459146,143.12,143.05,36.01367017]
[1768545124018,5.16459146,143.11,143.05,36.01367017]
[1768545124318,27.55761013,143.13,143.05,36.01367017]
[1768545124514,5.16345385,143.12,143.05,36.01367017]
[1768545124714,27.55761013,143.13,143.05,36.01367017]
[1768545124916,5.1634176,143.12,143.05,36.01367017]
[1768545125116,27.55761013,143.13,143.05,36.01367017]
[1768545125415,5.16241427,143.12,143.05,36.01367017]
[1768545125616,27.55761013,143.13,143.05,36.01367017]
[1768545125819,5.16251641,143.12,143.05,36.01367017]
[1768545126020,27.55761013,143.13,143.05,36.01367017]
[1768545126216,5.1616503,143.12,143.05,36.01367017]
[1768545126416,27.55761013,143.13,143.05,36.01367017]
[1768545126718,5.16177343,143.12,143.05,36.01367017]
[1768545127022,27.55761013,143.13,143.05,36.01367017]
[1768545127321,27.1275268,143.15,143.05,36.01367017]
[1768545127522,30.69625141,143.14,143.05,36.01367017]
[1768545127814,5.1606058,143.13,143.05,36.01367017]
[1768545128613,5.1606058,143.13,143.08,36.01367017]
[1768545128819,25.46746966,143.16,143.08,36.01367017]
[1768545129013,5.16016039,143.15,143.08,36.01367017]
[1768545129216,25.46746966,143.16,143.08,36.01367017]
[1768545129424,5.16060033,143.15,143.08,36.01367017]
[1768545129623,25.46746966,143.16,143.08,36.01367017]
[1768545129825,5.16060033,143.15,143.08,42.30647017]
[1768545130121,25.46746966,143.16,143.08,42.30647017]
[1768545130318,5.16081378,143.15,143.08,42.30647017]
[1768545130518,25.46746966,143.16,143.08,42.30647017]
[1768545130718,5.16092626,143.15,143.08,42.30647017]
[1768545131018,25.46746966,143.16,143.08,42.30647017]
[1768545131219,5.16085381,143.15,143.08,42.30647017]
[1768545131416,25.46746966,143.16,143.08,42.30647017]
[1768545131617,5.16126116,143.15,143.08,42.30647017]
[1768545131915,25.46746966,143.16,143.08,42.30647017]
[1768545132114,5.16126344,143.15,143.08,42.30647017]
[1768545132314,25.46746966,143.16,143.08,42.30647017]
[1768545132518,5.16166128,143.15,143.08,42.30647017]
[1768545132722,25.46746966,143.16,143.08,42.30647017]
[1768545132921,5.16166128,143.15,143.08,42.30647017]
[1768545133121,25.46746966,143.16,143.08,42.30647017]
[1768545133323,5.16209774,143.15,143.08,42.30647017]
[1768545133631,25.46746966,143.16,143.1,36.01367017]
[1768545134222,5.16223238,143.15,143.1,36.01367017]
[1768545134521,25.46746966,143.16,143.1,36.01367017]
[1768545135127,25.00742729,143.18,143.1,36.01367017]
[1768545135426,5.1626361,143.17,143.1,36.01367017]
[1768545135624,5.1626361,143.16,143.1,36.01367017]
[1768545135820,25.00742729,143.18,143.1,36.01367017]
[1768545136024,5.16258823,143.17,143.1,36.01367017]
[1768545136226,5.16258823,143.16,143.1,36.01367017]
[1768545136427,25.00742729,143.18,143.1,42.30567017]
[1768545136626,5.16302845,143.17,143.1,42.30567017]
[1768545136929,5.16302845,143.16,143.1,42.30567017]
[1768545137129,25.00742729,143.18,143.1,42.30567017]